fUST/lending_fUST_20250925
["ID","MTS","AMOUNT","RATE_DAILY","PERIOD"]
[387619854,1758789538178,10000.01,0.00019078,2]
[387619855,1758789538200,10000.01,0.00019078,2]
[387619856,1758789538221,10000.01,0.00019078,2]
[387619857,1758789538243,10000.01,0.00019078,2]
[387619858,1758789538264,10000.01,0.00019078,2]
[387619859,1758789538285,2033.97678845,0.00019078,2]
[387619867,1758789567228,718.5605334,0.00018351,2]
[387619871,1758789744013,597.714865,0.0001835,2]
[387619872,1758789748536,300.0,0.000184,2]
[387619873,1758789772523,230.001831,0.0001835,2]
[387619875,1758789785751,318.754463,0.00018769,2]
[387619876,1758789786077,1795.71814542,0.00018769,2]
[387619921,1758789971633,-466.52745781,0.000193,2]
[387619922,1758789971670,-300.0,0.00019348,2]
[387619923,1758789971707,-644.0,0.00019349,2]
[387619924,1758789971847,-300.0,0.00019349,2]
[387619925,1758789971883,-169.0,0.00019349,2]
[387619926,1758789971917,-267.0,0.00019349,2]
[387619927,1758789971952,-480.0,0.00019349,2]
[387619928,1758789971988,-480.0,0.00019349,2]
[387619929,1758789972022,-480.0,0.00019349,2]
[387619930,1758789972057,-564.44633765,0.00019349,2]
[387619931,1758789972087,-480.0,0.00019349,2]
[387619932,1758789972121,-258.06240908,0.00019349,2]
[387619933,1758789981624,-221.93759092,0.00019349,2]
[387619934,1758789981656,-481.9797365,0.00019349,2]
[387619935,1758789981687,-421.34813249,0.00019349,2]
[387619936,1758789981720,-480.0,0.00019349,2]
[387619937,1758789981751,-492.2396621,0.00019349,2]
[387619938,1758789981783,-483.93237798,0.00019349,2]
[387619939,1758789981821,-481.75427207,0.00019349,2]
[387619940,1758789981853,-480.0,0.00019349,2]
[387619941,1758789981884,-481.76470343,0.00019349,2]
[387619942,1758789981915,-293.35396727,0.00019349,2]
[387619943,1758789981944,-481.32424882,0.00019349,2]
[387619944,1758789982116,-480.0,0.00019349,2]
[387619945,1758789982143,-486.10912176,0.00019349,2]
[387619946,1758789982170,-339.99575644,0.00019349,2]
[387619947,1758789982198,-523.27279971,0.00019349,2]
[387619948,1758789982225,-481.13486468,0.00019349,2]
[387619949,1758789982252,-480.0,0.00019349,2]
[387619950,1758789982280,-480.0,0.00019349,2]
[387619951,1758789982307,-480.0,0.00019349,2]
[387619952,1758789982334,-487.23623252,0.00019349,2]
[387619953,1758789982362,-481.38890249,0.00019349,2]
[387619954,1758789982391,-78.16980648,0.00019349,2]
[387619955,1758789984181,-405.39503184,0.00019349,2]
[387619956,1758789984220,-481.27249114,0.00019349,2]
[387619957,1758789984253,-480.0,0.00019349,2]
[387619958,1758789984285,-384.13493772,0.0001935,2]
[387619959,1758789984315,-480.0,0.0001935,2]
[387619960,1758789984344,-408.11330553,0.0001935,2]
[387619961,1758789984374,-480.0,0.0001935,2]
[387619962,1758789984404,-480.0,0.0001935,2]
[387619963,1758789984433,-480.0,0.0001935,2]
[387619964,1758789984468,-480.0,0.0001935,2]
[387619965,1758789984499,-402.17846754,0.0001935,2]
[387619966,1758789986604,-480.0,0.00019349,2]
[387619967,1758789986633,-77.82153246,0.0001935,2]
[387619968,1758789986662,-480.0,0.0001935,2]
[387619969,1758789986690,-480.0,0.0001935,2]
[387619970,1758789986720,-483.07541405,0.0001935,2]
[387619971,1758789986748,-157.46934482,0.0001935,2]
[387619972,1758789986777,-480.0,0.0001935,2]
[387619973,1758789986806,-480.0,0.0001935,2]
[387619974,1758789986834,-480.0,0.0001935,2]
[387619975,1758789986861,-480.0,0.0001935,2]
[387619976,1758789986891,-480.0,0.0001935,2]
[387619977,1758789986920,-403.27741734,0.0001935,2]
[387619978,1758789991618,-185.65890008,0.0001925,2]
[387619979,1758789991649,-619.04462152,0.00019349,2]
[387619980,1758789991679,-76.72258266,0.0001935,2]
[387619981,1758789991709,-480.0,0.0001935,2]
[387619982,1758789991742,-533.84038876,0.0001935,2]
[387619983,1758789991772,-625.93806075,0.0001935,2]
[387619984,1758789991807,-480.0,0.0001935,2]
[387619985,1758789991936,-480.0,0.0001935,2]
[387619986,1758789991969,-296.8550685,0.0001935,2]
[387619987,1758789991999,-480.0,0.0001935,2]
[387619988,1758789992028,-480.0,0.0001935,2]
[387619989,1758789992057,-43.89075546,0.0001935,2]
[387619990,1758789992277,-436.10924454,0.0001935,2]
[387619991,1758789992306,-480.0,0.0001935,2]
[387619992,1758789992336,-480.0,0.0001935,2]
[387619993,1758789992364,-616.4483711,0.0001935,2]
[387619994,1758789992393,-480.0,0.0001935,2]
[387619995,1758789992422,-480.0,0.0001935,2]
[387619996,1758789992452,-480.0,0.0001935,2]
[387619997,1758789992485,-480.0,0.0001935,2]
[387619998,1758789992516,-480.0,0.0001935,2]
[387619999,1758789992545,-482.92753675,0.0001935,2]
[387620000,1758789992679,-405.71756841,0.0001935,2]
[387620001,1758789992713,-480.0,0.0001935,2]
[387620002,1758789992747,-417.90293501,0.0001935,2]
[387620003,1758789992778,-480.0,0.0001935,2]
[387620004,1758789992810,-500.0,0.0001935,2]
[387620005,1758789992841,-500.0,0.0001935,2]
[387620006,1758789992870,-216.92673546,0.0001935,2]
[387620007,1758789992901,-500.0,0.0001935,2]
[387620008,1758789992929,-505.86296479,0.0001935,2]
[387620009,1758789992964,-500.0,0.0001935,2]
[387620010,1758789992998,-201.08429473,0.0001935,2]
[387620011,1758789993077,-2807.66003795,0.0001935,2]
[387620012,1758789993112,-480.0,0.00019351,2]
[387620013,1758789993147,-480.0,0.00019351,2]
[387620014,1758789993184,-480.0,0.00019351,2]
[387620015,1758789993225,-480.0,0.00019351,2]
[387620016,1758789993264,-64.6899241,0.00019351,2]
[387620017,1758790000082,-415.3100759,0.00019351,2]
[387620018,1758790000110,-480.0,0.00019351,2]
[387620019,1758790000138,-489.87447491,0.00019351,2]
[387620020,1758790000165,-480.0,0.00019351,2]
[387620021,1758790000193,-480.0,0.00019351,2]
[387620022,1758790000222,-480.0,0.00019351,2]
[387620023,1758790000250,-480.0,0.00019351,2]
[387620024,1758790000277,-483.41996894,0.00019351,2]
[387620025,1758790000304,-405.67891948,0.00019351,2]
[387620026,1758790000331,-480.0,0.00019351,2]
[387620027,1758790000357,-166.44886945,0.00019351,2]
[387620028,1758790001705,-480.0,0.00019349,2]
[387620029,1758790001737,-318.54538264,0.00019351,2]
[387620030,1758790001766,-484.2666169,0.00019351,2]
[387620031,1758790001797,-484.48920386,0.00019351,2]
[387620032,1758790001830,-485.15306181,0.00019351,2]
[387620033,1758790001860,-480.0,0.00019351,2]
[387620034,1758790001890,-304.27857474,0.00019351,2]
[387620035,1758790001919,-480.0,0.00019351,2]
[387620036,1758790001948,-486.46142387,0.00019351,2]
[387620037,1758790001976,-491.14676862,0.00019351,2]
[387620038,1758790002005,-480.66723673,0.00019351,2]
[387620039,1758790002446,-482.15148376,0.00019351,2]
[387620040,1758790002478,-480.0,0.00019351,2]
[387620041,1758790002507,-480.0,0.00019351,2]
[387620042,1758790002536,-481.99057623,0.00019351,2]
[387620043,1758790002567,-480.0,0.00019351,2]
[387620044,1758790002598,-480.0,0.00019351,2]
[387620045,1758790002628,-480.0,0.00019351,2]
[387620046,1758790002657,-480.0,0.00019351,2]
[387620047,1758790002702,-483.22635894,0.00019351,2]
[387620048,1758790002739,-480.0,0.00019351,2]
[387620049,1758790002768,-117.07685349,0.00019351,2]
[387620050,1758790002889,-151.11945516,0.00019351,2]
[387620051,1758790002917,-482.65708282,0.00019351,2]
[387620052,1758790002945,-480.0,0.00019351,2]
[387620053,1758790002977,-480.0,0.00019351,2]
[387620054,1758790003005,-480.0,0.00019351,2]
[387620055,1758790003031,-480.0,0.00019351,2]
[387620056,1758790003059,-484.95030407,0.00019351,2]
[387620057,1758790003088,-482.04314207,0.00019351,2]
[387620058,1758790003116,-480.0,0.00019351,2]
[387620059,1758790003144,-480.0,0.00019351,2]
[387620060,1758790003172,-480.0,0.00019351,2]
[387620061,1758790011649,-481.38489657,0.00019349,2]
[387620062,1758790011679,-480.0,0.00019349,2]
[387620063,1758790011709,-480.0,0.00019351,2]
[387620064,1758790011738,-482.29688122,0.00019351,2]
[387620065,1758790011767,-485.94977299,0.00019351,2]
[387620066,1758790011797,-480.0,0.00019351,2]
[387620067,1758790011830,-481.31711894,0.00019351,2]
[387620068,1758790011858,-480.0,0.00019351,2]
[387620069,1758790011887,-458.0559858,0.00019351,2]
[387620070,1758790011916,-480.0,0.00019351,2]
[387620071,1758790012212,-480.0,0.00019351,2]
[387620072,1758790012242,-484.97697786,0.00019351,2]
[387620073,1758790012271,-480.0,0.00019351,2]
[387620074,1758790012300,-480.0,0.00019351,2]
[387620075,1758790012335,-480.0,0.00019351,2]
[387620076,1758790012453,-480.0,0.00019351,2]
[387620077,1758790012484,-383.25369603,0.00019351,2]
[387620078,1758790012514,-499.5856215,0.00019351,2]
[387620079,1758790012544,-480.0,0.00019351,2]
[387620080,1758790012574,-480.0,0.00019351,2]
[387620081,1758790012603,-62.5430162,0.00019351,2]
[387620082,1758790012732,-419.29137682,0.00019351,2]
[387620083,1758790012761,-481.60023008,0.00019351,2]
[387620084,1758790012789,-480.0,0.00019351,2]
[387620085,1758790012822,-480.0,0.00019351,2]
[387620086,1758790012850,-480.0,0.00019351,2]
[387620087,1758790012879,-182.65772004,0.00019351,2]
[387620088,1758790012906,-480.0,0.00019351,2]
[387620089,1758790012933,-480.0,0.00019351,2]
[387620090,1758790012961,-477.73027557,0.00019351,2]
[387620091,1758790012993,-480.0,0.00019351,2]
[387620092,1758790013020,-480.0,0.00019351,2]
[387620093,1758790013223,-480.0,0.00019351,2]
[387620094,1758790013252,-480.0,0.00019351,2]
[387620095,1758790013282,-480.0,0.00019351,2]
[387620096,1758790013312,-480.0,0.00019351,2]
[387620097,1758790013340,-485.36505383,0.00019351,2]
[387620098,1758790013368,-480.0,0.00019351,2]
[387620099,1758790013396,-488.6797101,0.00019351,2]
[387620100,1758790013424,-480.0,0.00019351,2]
[387620101,1758790013452,-480.0,0.00019351,2]
[387620102,1758790013482,-480.0,0.00019351,2]
[387620103,1758790021706,-480.0,0.00019349,2]
[387620104,1758790021741,-480.0,0.00019349,2]
[387620105,1758790021776,-480.0,0.00019349,2]
[387620106,1758790021814,-480.0,0.00019349,2]
[387620107,1758790021851,-480.0,0.0001935,2]
[387620108,1758790021884,-486.32062007,0.00019351,2]
[387620109,1758790021919,-480.0,0.00019351,2]
[387620110,1758790021954,-491.91765334,0.00019351,2]
[387620111,1758790021988,-184.72632955,0.00019351,2]
[387620112,1758790022023,-486.59,0.00019351,2]
[387620113,1758790022054,-460.90079408,0.00019351,2]
[387620114,1758790022210,-19.09920592,0.00019351,2]
[387620115,1758790022244,-480.0,0.00019351,2]
[387620116,1758790022276,-480.0,0.00019351,2]
[387620117,1758790022307,-165.70666578,0.00019351,2]
[387620118,1758790022338,-480.0,0.00019351,2]
[387620119,1758790022370,-480.0,0.00019351,2]
[387620120,1758790022405,-480.0,0.00019351,2]
[387620121,1758790022438,-480.0,0.00019351,2]
[387620122,1758790022469,-480.0,0.00019351,2]
[387620123,1758790022505,-480.0,0.00019351,2]
[387620124,1758790022536,-480.0,0.00019351,2]
[387620125,1758790022572,-480.0,0.00019351,2]
[387620126,1758790022860,-206.32701861,0.00019351,2]
[387620127,1758790022893,-480.0,0.00019351,2]
[387620128,1758790022922,-270.18544533,0.00019351,2]
[387620129,1758790022957,-480.0,0.00019351,2]
[387620130,1758790022989,-483.00748461,0.00019351,2]
[387620131,1758790023025,-480.0,0.00019351,2]
[387620132,1758790023059,-586.69656433,0.00019351,2]
[387620133,1758790023090,-548.82819789,0.00019351,2]
[387620134,1758790023122,-480.0,0.00019351,2]
[387620135,1758790023228,-480.0,0.00019351,2]
[387620136,1758790023282,-474.0,0.00019351,2]
[387620137,1758790023453,-481.08123856,0.00019351,2]
[387620138,1758790023489,-480.0,0.00019351,2]
[387620139,1758790023523,-480.0,0.00019351,2]
[387620140,1758790023556,-504.57088496,0.00019351,2]
[387620141,1758790023587,-480.0,0.00019351,2]
[387620142,1758790023619,-480.0,0.00019351,2]
[387620143,1758790023653,-480.0,0.00019351,2]
[387620144,1758790023688,-480.60876036,0.00019351,2]
[387620145,1758790023722,-480.0,0.00019351,2]
[387620146,1758790023760,-188.3019784,0.00019351,2]
[387620147,1758790023794,-450.88427544,0.00019351,2]
[387620148,1758790031741,-868.91942732,0.00019273,2]
[387620149,1758790031771,-300.0,0.0001935,2]
[387620150,1758790031800,-480.0,0.0001935,2]
[387620151,1758790031841,-29.11572456,0.00019351,2]
[387620152,1758790031870,-480.77638147,0.00019351,2]
[387620153,1758790031898,-480.0,0.00019351,2]
[387620154,1758790031926,-429.2939867,0.00019351,2]
[387620155,1758790031953,-480.0,0.00019351,2]
[387620156,1758790031982,-500.0,0.00019351,2]
[387620157,1758790032011,-294.42400708,0.00019351,2]
[387620158,1758790032039,-194.96450569,0.00019351,2]
[387620159,1758790032069,-425.02193436,0.00019351,2]
[387620160,1758790032259,-74.97806564,0.00019351,2]
[387620161,1758790032289,-612.3005602,0.00019351,2]
[387620162,1758790032317,-500.0,0.00019351,2]
[387620163,1758790032346,-500.0,0.00019351,2]
[387620164,1758790032376,-500.0,0.00019351,2]
[387620165,1758790032406,-500.0,0.00019351,2]
[387620166,1758790032437,-500.0,0.00019351,2]
[387620167,1758790032465,-500.0,0.00019351,2]
[387620168,1758790032494,-500.0,0.00019351,2]
[387620171,1758790041124,-480.0,0.00019349,2]
[387620172,1758790041145,-180.67074382,0.00019349,2]
[387620173,1758790041988,-299.32925618,0.00019349,2]
[387620174,1758790042020,-480.0,0.0001935,2]
[387620177,1758790052042,1000.0,0.00018468,2]
[387620178,1758790061578,178.0,8e-07,2]
[387620179,1758790082368,302.39527296,0.000189,2]
[387620180,1758790084596,-232.57168816,0.00019089,2]
[387620181,1758790086597,-70.15570631,0.00019089,2]
[387620184,1758790180393,658.982779,0.00018351,2]
[387620186,1758790207596,7860.63194804,0.00018351,2]
[387620187,1758790207619,3554.97961496,0.00018351,2]
[387620189,1758790231947,-447.61554331,0.00019273,2]
[387620190,1758790231958,-253.43,0.00019273,2]
[387620192,1758790231968,-163.21093918,0.00019273,2]
[387620194,1758790231978,-3058.6725317,0.00019344,2]
[387620196,1758790231987,-300.0,0.00019348,2]
[387620197,1758790231998,-300.0,0.00019348,2]
[387620199,1758790232007,-480.0,0.00019349,2]
[387620201,1758790232016,-480.0,0.00019349,2]
[387620203,1758790232026,-480.0,0.00019349,2]
[387620204,1758790232035,-158.15226016,0.00019349,2]
[387620205,1758790232045,-225.254528,0.00019349,2]
[387620207,1758790232055,-480.0,0.00019349,2]
[387620209,1758790232065,-480.0,0.0001935,2]
[387620211,1758790232075,-480.0,0.0001935,2]
[387620213,1758790232085,-480.0,0.0001935,2]
[387620215,1758790232095,-480.0,0.0001935,2]
[387620217,1758790232104,-480.0,0.0001935,2]
[387620219,1758790232114,-480.0,0.0001935,2]
[387620221,1758790232123,-480.0,0.0001935,2]
[387620223,1758790232132,-480.0,0.0001935,2]
[387620225,1758790232142,-480.0,0.0001935,2]
[387620227,1758790232152,-488.39825059,0.0001935,2]
[387620228,1758790232161,-623.78,0.0001935,2]
[387620230,1758790232170,-480.0,0.0001935,2]
[387620232,1758790232180,-503.53162253,0.0001935,2]
[387620233,1758790232192,-480.0,0.0001935,2]
[387620234,1758790232203,-564.84640153,0.0001935,2]
[387620235,1758790232212,-485.44968466,0.0001935,2]
[387620236,1758790232222,-558.34745576,0.0001935,2]
[387620238,1758790232231,-484.00080736,0.0001935,2]
[387620240,1758790232241,-480.0,0.0001935,2]
[387620242,1758790232250,-466.81610051,0.0001935,2]
[387620244,1758790232260,-480.0,0.0001935,2]
[387620246,1758790232269,-480.0,0.0001935,2]
[387620247,1758790232278,-480.0,0.0001935,2]
[387620249,1758790232288,-480.0,0.0001935,2]
[387620251,1758790232297,-480.0,0.0001935,2]
[387620253,1758790232307,-480.0,0.0001935,2]
[387620255,1758790232317,-232.57168816,0.0001935,2]
[387620257,1758790232326,-480.0,0.00019351,2]
[387620259,1758790232336,-1291.28,0.00019351,2]
[387620260,1758790232346,-480.0,0.00019351,2]
[387620262,1758790232356,-458.54071435,0.00019351,2]
[387620264,1758790232365,-480.0,0.00019351,2]
[387620266,1758790232374,-480.0,0.00019351,2]
[387620268,1758790232384,-480.0,0.00019351,2]
[387620270,1758790232393,-491.20635136,0.00019351,2]
[387620272,1758790232403,-480.0,0.00019351,2]
[387620274,1758790232412,-480.0,0.00019351,2]
[387620276,1758790232422,-484.75133298,0.00019351,2]
[387620278,1758790232431,-480.0,0.00019351,2]
[387620280,1758790232442,-480.0,0.00019351,2]
[387620282,1758790232452,-480.0,0.00019351,2]
[387620284,1758790232462,-212.15676891,0.00019351,2]
[387620286,1758790232471,-491.64209477,0.00019351,2]
[387620288,1758790232481,-500.0,0.00019351,2]
[387620290,1758790232490,-500.0,0.00019351,2]
[387620292,1758790232500,-491.8901688,0.00019351,2]
[387620294,1758790232510,-189.00936608,0.00019351,2]
[387620296,1758790232519,-10075.87769337,0.00019352,2]
[387620298,1758790232531,-1335.13735634,0.00019352,2]
[387620300,1758790232542,-824.26587541,0.00019352,2]
[387620302,1758790232554,-1479.80351842,0.00019352,2]
[387620304,1758790232565,-5139.08496042,0.00019352,2]
[387620435,1758790236325,178.0,8e-07,2]
[387620471,1758790237861,-480.0,0.00019351,2]
[387620473,1758790237872,-13933.68028919,0.00019352,2]
[387620475,1758790237887,-425.9608348,0.00019352,2]
[387620478,1758790237902,-2367.31938524,0.00019352,2]
[387620480,1758790237914,-4210.68214242,0.00019352,2]
[387620482,1758790237925,-330208.18794439,0.00019352,2]
[387620484,1758790237934,-500.0,0.00019373,2]
[387620486,1758790237945,-326.53650875,0.00019373,2]
[387620488,1758790237956,-500.93720808,0.00019373,2]
[387620490,1758790237966,-501.2977237,0.00019373,2]
[387620493,1758790237975,-500.0,0.00019373,2]
[387620495,1758790237985,-500.0,0.00019373,2]
[387620497,1758790237994,-480.0,0.00019623,2]
[387620499,1758790238004,-480.0,0.00019623,2]
[387620501,1758790238014,-480.0,0.00019623,2]
[387620503,1758790238023,-480.0,0.00019624,2]
[387620505,1758790238032,-480.0,0.00019624,2]
[387620507,1758790238042,-498.82696917,0.00019624,2]
[387620509,1758790238051,-480.0,0.00019624,2]
[387620511,1758790238061,-480.0,0.00019624,2]
[387620513,1758790238070,-480.88555157,0.00019624,2]
[387620515,1758790238079,-480.0,0.00019624,2]
[387620517,1758790238088,-483.50126493,0.00019624,2]
[387620519,1758790238097,-480.0,0.00019624,2]
[387620521,1758790238106,-381.41995676,0.00019624,2]
[387620523,1758790238115,-480.0,0.00019624,2]
[387620525,1758790238125,-480.0,0.00019624,2]
[387620527,1758790238134,-480.0,0.00019624,2]
[387620529,1758790238142,-623.78,0.00019624,2]
[387620540,1758790238243,-480.0,0.00019624,2]
[387620542,1758790238253,-480.0,0.00019624,2]
[387620544,1758790238263,-480.0,0.00019624,2]
[387620546,1758790238273,-480.0,0.00019624,2]
[387620548,1758790238283,-480.0,0.00019624,2]
[387620550,1758790238292,-480.0,0.00019624,2]
[387620552,1758790238301,-262.81507945,0.00019625,2]
[387620554,1758790238311,-480.0,0.00019625,2]
[387620556,1758790238320,-477.10875645,0.00019625,2]
[387620558,1758790238329,-484.05635111,0.00019625,2]
[387620560,1758790238339,-585.67682124,0.00019625,2]
[387620562,1758790238349,-240.3621039,0.00019625,2]
[387620564,1758790238358,-1291.28,0.00019625,2]
[387620566,1758790238367,-480.0,0.00019625,2]
[387620568,1758790238377,-480.0,0.00019625,2]
[387620570,1758790238386,-480.0,0.00019625,2]
[387620572,1758790238395,-480.0,0.00019625,2]
[387620574,1758790238404,-480.0,0.00019897,2]
[387620576,1758790238413,-480.0,0.00019897,2]
[387620578,1758790238422,-480.0,0.00019898,2]
[387620580,1758790238431,-480.0,0.00019898,2]
[387620582,1758790238442,-623.78,0.00019898,2]
[387620584,1758790238452,-480.0,0.00019898,2]
[387620586,1758790238461,-480.0,0.00019898,2]
[387620588,1758790238470,-480.0,0.00019898,2]
[387620590,1758790238479,-480.0,0.00019898,2]
[387620593,1758790238489,-480.0,0.00019898,2]
[387620596,1758790238498,-486.23906902,0.00019899,2]
[387620599,1758790238508,-1291.28,0.00019899,2]
[387620602,1758790238517,-480.0,0.00019899,2]
[387620604,1758790238526,-480.0,0.00019899,2]
[387620608,1758790238536,-480.0,0.00019899,2]
[387620610,1758790238546,-480.0,0.00019899,2]
[387620613,1758790238556,-889.52635148,0.000199,2]
[387620616,1758790238567,-394.58552777,0.00019921,2]
[387620619,1758790238576,-1000.0,0.00019921,2]
[387620622,1758790238585,-504.46953015,0.00019973,2]
[387620625,1758790238594,-500.0,0.00019973,2]
[387620628,1758790238604,-501.7140521,0.00019973,2]
[387620631,1758790238613,-501.7698393,0.00019973,2]
[387620634,1758790238622,-100000.0,0.0001999,2]
[387620637,1758790238631,-480.0,0.00020171,2]
[387620640,1758790238640,-480.0,0.00020172,2]
[387620643,1758790238650,-480.0,0.00020172,2]
[387620646,1758790238659,-623.78,0.00020172,2]
[387620649,1758790238668,-480.0,0.00020172,2]
[387620652,1758790238678,-480.0,0.00020172,2]
[387620655,1758790238688,-588.95138659,0.00020172,2]
[387620658,1758790238698,-480.0,0.00020172,2]
[387620661,1758790238707,-1291.28,0.00020173,2]
[387620664,1758790238717,-480.0,0.00020173,2]
[387620667,1758790238727,-480.0,0.00020173,2]
[387620670,1758790238736,-480.0,0.00020173,2]
[387620672,1758790238745,-13004.22261172,0.00020394,2]
[387620674,1758790238755,-480.0,0.00020445,2]
[387620676,1758790238765,-480.0,0.00020446,2]
[387620678,1758790238774,-480.0,0.00020446,2]
[387620680,1758790238784,-623.78,0.00020446,2]
[387620682,1758790238793,-480.0,0.00020446,2]
[387620684,1758790238802,-480.0,0.00020446,2]
[387620686,1758790238811,-480.0,0.00020446,2]
[387620688,1758790238821,-1291.28,0.00020447,2]
[387620690,1758790238830,-473.28,0.00020447,2]
[387620692,1758790238839,-480.0,0.00020447,2]
[387620694,1758790238848,-480.0,0.00020447,2]
[387620696,1758790238858,-486.0964218,0.00020626,2]
[387620698,1758790238867,-480.0,0.00020626,2]
[387620700,1758790238878,-480.0,0.00020626,2]
[387620702,1758790238887,-480.0,0.00020626,2]
[387620704,1758790238896,-484.83722018,0.00020626,2]
[387620706,1758790238906,-480.0,0.00020626,2]
[387620708,1758790238916,-160.0,0.00020627,3]
[387620710,1758790238926,-28567.35474008,0.00020627,3]
[387620711,1758790238936,-238.57457338,0.00020673,2]
[387620713,1758790238947,-500.0,0.00020673,2]
[387620715,1758790238957,-500.0,0.00020673,2]
[387620717,1758790238966,-406.79269329,0.00020673,2]
[387620719,1758790238977,-480.0,0.00020719,2]
[387620721,1758790238986,-480.0,0.0002072,2]
[387620723,1758790238996,-623.78,0.0002072,2]
[387620725,1758790239005,-480.0,0.0002072,2]
[387620727,1758790239014,-453.15594172,0.0002072,2]
[387620729,1758790239024,-480.0,0.0002072,2]
[387620731,1758790239033,-1291.28,0.00020721,2]
[387620733,1758790239044,-597.52475481,0.00020721,2]
[387620735,1758790239053,-480.0,0.00020721,2]
[387620736,1758790239061,-150.0,0.00020804,2]
[387620737,1758790239070,-480.0,0.000209,2]
[387620738,1758790239079,-496.56485711,0.000209,2]
[387620739,1758790239088,-480.0,0.000209,2]
[387620740,1758790239096,-480.0,0.000209,2]
[387620741,1758790239105,-889.52635148,0.00020972,2]
[387620742,1758790239114,-480.0,0.00020993,2]
[387620743,1758790239123,-480.0,0.00020994,2]
[387620744,1758790239132,-623.78,0.00020994,2]
[387620745,1758790239141,-480.0,0.00020994,2]
[387620746,1758790239150,-480.0,0.00020994,2]
[387620748,1758790239159,-1291.28,0.00020995,2]
[387620750,1758790239169,-480.0,0.00020995,2]
[387620752,1758790239178,-160.0,0.00021105,2]
[387620754,1758790239187,-1000.0,0.00021221,2]
[387620756,1758790239197,-1000.0,0.00021221,2]
[387620758,1758790239206,-480.0,0.00021267,2]
[387620760,1758790239215,-480.0,0.00021268,2]
[387620762,1758790239225,-623.78,0.00021268,2]
[387620764,1758790239234,-480.0,0.00021268,2]
[387620766,1758790239243,-480.0,0.00021268,2]
[387620768,1758790239252,-1291.28,0.00021269,2]
[387620770,1758790239262,-480.0,0.00021269,2]
[387620772,1758790239272,-447.61554329,0.0002129,2]
[387620774,1758790239281,-480.0,0.00021541,2]
[387620776,1758790239290,-480.0,0.00021542,2]
[387620778,1758790239300,-623.78,0.00021542,2]
[387620780,1758790239309,-480.0,0.00021542,2]
[387620782,1758790239323,-480.0,0.00021542,2]
[387620785,1758790239334,-1291.28,0.00021543,2]
[387620787,1758790239346,-480.0,0.00021543,2]
[387620789,1758790239357,-414.03812162,0.00021653,2]
[387620791,1758790239369,-480.0,0.00021717,2]
[387620793,1758790239379,-150.1,0.00021717,2]
[387620796,1758790239390,-150.1,0.00021717,2]
[387620798,1758790239402,-150.07,0.00021717,2]
[387620800,1758790239414,-1500.0,0.00021768,2]
[387620802,1758790239426,-1500.0,0.00021768,2]
[387620804,1758790239436,-230.001831,0.00021775,2]
[387620806,1758790239447,-480.0,0.00021815,2]
[387620808,1758790239458,-480.0,0.00021816,2]
[387620811,1758790239470,-623.78,0.00021816,2]
[387620813,1758790239481,-480.0,0.00021816,2]
[387620815,1758790239492,-480.0,0.00021816,2]
[387620817,1758790239503,-1291.28,0.00021817,2]
[387620820,1758790239515,-480.0,0.00021817,2]
[387620823,1758790239526,-150.0,0.00021918,2]
[387620825,1758790239538,-152.58499236,0.00021918,2]